Workbook

Sheet Monday Open
A1: NORWICH NETBALL WINTER LEAGUE 2025-26
D3: MONDAY OUTDOOR
A4: TEAM | B4: P | C4: W | D4: D | E4: L(-5) | F4: L(50%) | G4: L | H4: F | I4: A | J4: g/diff | K4: Deducted | L4: Pts
A5: Norwich Doves | B5: 13 | C5: 12 | D5: 1 | H5: 594 | I5: 222 | J5: =(H5-I5) -> 372 | L5: =((C5*5)+(D5*3)+(E5*2)+(F5*1))-K5 -> 63
A6: Norwich City Flyers | B6: 13 | C6: 12 | F6: 1 | H6: 435 | I6: 220 | J6: 215 | L6: 61
A7: Red Hot Chillies/Gems | B7: 12 | C7: 6 | D7: 2 | E7: 2 | F7: 2 | H7: 403 | I7: 283 | J7: =(H7-I7) -> 120 | L7: =((C7*5)+(D7*3)+(E7*2)+(F7*1))-K7 -> 42
A8: Dragons | B8: 13 | C8: 7 | F8: 2 | G8: 4 | H8: 308 | I8: 344 | J8: =(H8-I8) -> -36 | L8: =((C8*5)+(D8*3)+(E8*2)+(F8*1))-K8 -> 37
A9: First Home Improvements/Wrens | B9: 12 | C9: 5 | D9: 1 | F9: 2 | G9: 4 | H9: 257 | I9: 303 | J9: =(H9-I9) -> -46 | K9: 2 | L9: =((C9*5)+(D9*3)+(E9*2)+(F9*1))-K9 -> 28
A10: Cromer Vipers | B10: 13 | C10: 3 | E10: 1 | F10: 5 | G10: 4 | H10: 302 | I10: 407 | J10: =(H10-I10) -> -105 | L10: =((C10*5)+(D10*3)+(E10*2)+(F10*1))-K10 -> 22
A11: UEA White | B11: 12 | C11: 3 | F11: 3 | G11: 6 | H11: 236 | I11: 474 | J11: =(H11-I11) -> -238 | K11: 2 | L11: =((C11*5)+(D11*3)+(E11*2)+(F11*1))-K11 -> 16
A12: Norfolk Nettas | B12: 12 | F12: 5 | G12: 7 | H12: 156 | I12: 438 | J12: -282 | L12: 5
A14: Cancelled/abandoned
A15: Norfolk Nettas v UEA White | B15: 2025-10-13 | C15: Court Conditions
A16: FHI v Gems | B16: 2025-10-13 | C16: Court Conditions
A17: All Matches | B17: 2025-10-20 | C17: Court Conditions
A18: All Matches | B18: 2025-11-10 | C18: Court Conditions
A19: All Matches by teams | B19: 2025-11-24 | C19: Court Conditions
A20: All Matches | B20: 2025-12-01 | C20: Court Conditions
A21: All Matches | B21: 2026-01-15 | C21: Weather
A24: Conceded
A25: FHI v UEA White | B25: 2026-01-12
A26: Wrens v Dragons | B26: 2026-02-02

Sheet Tuesday
A1: NORWICH NETBALL WINTER LEAGUE 2025-26
D3: DIVISION 1
A4: TEAM | B4: P | C4: W | D4: D | E4: L(-5) | F4: L(50%) | G4: L | H4: F | I4: A | J4: g/diff | K4: Deducted | L4: Pts
A5: NU Royal | B5: 9 | C5: 9 | H5: 494 | I5: 214 | J5: =(H5-I5) -> 280 | L5: =((C5*5)+(D5*3)+(E5*2)+(F5*1))-K5 -> 45
A6: NU Sapphire | B6: 9 | C6: 7 | F6: 2 | H6: 369 | I6: 294 | J6: =(H6-I6) -> 75 | L6: =((C6*5)+(D6*3)+(E6*2)+(F6*1))-K6 -> 37
A7: Stars | B7: 9 | C7: 4 | D7: 1 | F7: 2 | G7: 2 | H7: 278 | I7: 333 | J7: =(H7-I7) -> -55 | K7: 2 | L7: =((C7*5)+(D7*3)+(E7*2)+(F7*1))-K7 -> 23
A8: T'Bred Racers | B8: 8 | C8: 2 | D8: 1 | F8: 3 | G8: 2 | H8: 239 | I8: 343 | J8: =(H8-I8) -> -104 | L8: =((C8*5)+(D8*3)+(E8*2)+(F8*1))-K8 -> 16
A9: Red Knights | B9: 9 | C9: 1 | D9: 1 | E9: 2 | F9: 3 | G9: 2 | H9: 264 | I9: 343 | J9: =(H9-I9) -> -79 | L9: =((C9*5)+(D9*3)+(E9*2)+(F9*1))-K9 -> 15
A10: Thetford A | B10: 8 | C10: 1 | D10: 1 | F10: 5 | G10: 1 | H10: 225 | I10: 342 | J10: =(H10-I10) -> -117 | L10: =((C10*5)+(D10*3)+(E10*2)+(F10*1))-K10 -> 13
D12: DIVISION 2
A13: TEAM | B13: P | C13: W | D13: D | E13: L(-5) | F13: L(50%) | G13: L | H13: F | I13: A | J13: g/diff | K13: Deducted | L13: Pts
A14: UEA Blue | B14: 9 | C14: 9 | H14: 393 | I14: 225 | J14: =(H14-I14) -> 168 | L14: =((C14*5)+(D14*3)+(E14*2)+(F14*1))-K14 -> 45
A15: T'Bred Shetlands | B15: 9 | C15: 6 | E15: 1 | F15: 2 | H15: 307 | I15: 245 | J15: =(H15-I15) -> 62 | L15: =((C15*5)+(D15*3)+(E15*2)+(F15*1))-K15 -> 34
A16: Jets | B16: 9 | C16: 6 | F16: 2 | G16: 1 | H16: 299 | I16: 247 | J16: =(H16-I16) -> 52 | L16: =((C16*5)+(D16*3)+(E16*2)+(F16*1))-K16 -> 32
A17: NU Marine | B17: 9 | C17: 4 | E17: 1 | F17: 4 | H17: 366 | I17: 352 | J17: 14 | L17: 26
A18: Phoenix | B18: 9 | C18: 2 | F18: 2 | G18: 5 | H18: 214 | I18: 380 | J18: -166 | K18: 2 | L18: 10
A19: Oracle Pink | B19: 9 | E19: 2 | F19: 5 | G19: 2 | H19: 237 | I19: 367 | J19: -130 | K19: 4 | L19: 5
D21: DIVISION 3
A23: TEAM | B23: P | C23: W | D23: D | E23: L(-5) | F23: L(50%) | G23: L | H23: F | I23: A | J23: g/diff | K23: Deducted | L23: Pts
A24: Black Knights | B24: 9 | C24: 7 | D24: 1 | E24: 1 | H24: 326 | I24: 292 | J24: =(H24-I24) -> 34 | L24: =((C24*5)+(D24*3)+(E24*2)+(F24*1))-K24 -> 40
A25: NU Jade | B25: 9 | C25: 5 | D25: 3 | E25: 1 | H25: 353 | I25: 290 | J25: =(H25-I25) -> 63 | L25: =((C25*5)+(D25*3)+(E25*2)+(F25*1))-K25 -> 36
A26: Venus | B26: 8 | C26: 4 | D26: 1 | E26: 1 | F26: 2 | H26: 273 | I26: 265 | J26: =(H26-I26) -> 8 | L26: =((C26*5)+(D26*3)+(E26*2)+(F26*1))-K26 -> 27
A27: Premier | B27: 8 | C27: 4 | E27: 3 | F27: 1 | H27: 316 | I27: 318 | J27: =(H27-I27) -> -2 | L27: =((C27*5)+(D27*3)+(E27*2)+(F27*1))-K27 -> 27
A28: Wrens | B28: 9 | C28: 4 | E28: 1 | F28: 4 | H28: 288 | I28: 336 | J28: =(H28-I28) -> -48 | L28: =((C28*5)+(D28*3)+(E28*2)+(F28*1))-K28 -> 26
A29: Thetford B | B29: 9 | D29: 1 | E29: 2 | F29: 6 | H29: 269 | I29: 324 | J29: -55 | L29: 13
D31: DIVISION 4
A32: TEAM | B32: P | C32: W | D32: D | E32: L(-5) | F32: L(50%) | G32: L | H32: F | I32: A | J32: g/diff | K32: Deducted | L32: Pts
A33: Cliff Park | B33: 8 | C33: 8 | H33: 339 | I33: 174 | J33: =(H33-I33) -> 165 | L33: =((C33*5)+(D33*3)+(E33*2)+(F33*1))-K33 -> 40
A34: Sirens | B34: 8 | C34: 6 | F34: 2 | H34: 286 | I34: 209 | J34: =(H34-I34) -> 77 | L34: =((C34*5)+(D34*3)+(E34*2)+(F34*1))-K34 -> 32
A35: Sonics | B35: 8 | C35: 5 | E35: 1 | G35: 2 | H35: 237 | I35: 212 | J35: =(H35-I35) -> 25 | L35: =((C35*5)+(D35*3)+(E35*2)+(F35*1))-K35 -> 27
A36: Blades | B36: 8 | C36: 3 | F36: 5 | H36: 311 | I36: 315 | J36: =(H36-I36) -> -4 | L36: =((C36*5)+(D36*3)+(E36*2)+(F36*1))-K36 -> 20
A37: Hotshots | B37: 8 | C37: 2 | F37: 5 | G37: 1 | H37: 245 | I37: 307 | J37: =(H37-I37) -> -62 | L37: =((C37*5)+(D37*3)+(E37*2)+(F37*1))-K37 -> 15
A38: T'Bred Mustangs | B38: 8 | F38: 3 | G38: 5 | H38: 142 | I38: 343 | J38: -201 | L38: 3
D40: DIVISION 5
A41: TEAM | B41: P | C41: W | D41: D | E41: L(-5) | F41: L(50%) | G41: L | H41: F | I41: A | J41: g/diff | K41: Deducted | L41: Pts
A42: White Knights | B42: 8 | C42: 8 | H42: 360 | I42: 181 | J42: =(H42-I42) -> 179 | L42: =((C42*5)+(D42*3)+(E42*2)+(F42*1))-K42 -> 40
A43: NU Amber | B43: 8 | C43: 6 | F43: 1 | G43: 1 | H43: 314 | I43: 226 | J43: =(H43-I43) -> 88 | K43: 2 | L43: =((C43*5)+(D43*3)+(E43*2)+(F43*1))-K43 -> 29
A44: Falcons | B44: 8 | C44: 5 | F44: 2 | G44: 1 | H44: 318 | I44: 269 | J44: =(H44-I44) -> 49 | L44: =((C44*5)+(D44*3)+(E44*2)+(F44*1))-K44 -> 27
A45: Watton Wolves | B45: 8 | C45: 3 | F45: 3 | G45: 2 | H45: 233 | I45: 301 | J45: =(H45-I45) -> -68 | L45: =((C45*5)+(D45*3)+(E45*2)+(F45*1))-K45 -> 18
A46: UEA Gold | B46: 8 | C46: 2 | E46: 1 | F46: 4 | G46: 1 | H46: 214 | I46: 274 | J46: =(H46-I46) -> -60 | L46: =((C46*5)+(D46*3)+(E46*2)+(F46*1))-K46 -> 16
A47: Hornets | B47: 8 | F47: 4 | G47: 4 | H47: 141 | I47: 329 | J47: -188 | L47: 4
D49: DIVISION 6
A50: TEAM | B50: P | C50: W | D50: D | E50: L(-5) | F50: L(50%) | G50: L | H50: F | I50: A | J50: g/diff | K50: Deducted | L50: Pts
A51: Hethersett Rockets | B51: 8 | C51: 7 | F51: 1 | H51: 327 | I51: 264 | J51: =(H51-I51) -> 63 | L51: =((C51*5)+(D51*3)+(E51*2)+(F51*1))-K51 -> 36
A52: T'bred Ponies | B52: 8 | C52: 6 | E52: 2 | H52: 302 | I52: 243 | J52: =(H52-I52) -> 59 | L52: =((C52*5)+(D52*3)+(E52*2)+(F52*1))-K52 -> 34
A53: NU Ruby | B53: 8 | C53: 5 | F53: 3 | H53: 261 | I53: 246 | J53: =(H53-I53) -> 15 | L53: =((C53*5)+(D53*3)+(E53*2)+(F53*1))-K53 -> 28
A54: Gems | B54: 8 | C54: 4 | E54: 1 | F54: 3 | H54: 257 | I54: 250 | J54: =(H54-I54) -> 7 | L54: =((C54*5)+(D54*3)+(E54*2)+(F54*1))-K54 -> 25
A55: Trailblazers | B55: 8 | C55: 3 | F55: 4 | G55: 1 | H55: 212 | I55: 250 | J55: =(H55-I55) -> -38 | L55: =((C55*5)+(D55*3)+(E55*2)+(F55*1))-K55 -> 19
A56: First Home Improvements | B56: 8 | E56: 2 | F56: 5 | G56: 1 | H56: 201 | I56: 307 | J56: =(H56-I56) -> -106 | K56: 2 | L56: =((C56*5)+(D56*3)+(E56*2)+(F56*1))-K56 -> 7
E58: DIVISION 7
A59: TEAM | B59: P | C59: W | D59: D | E59: L(-5) | F59: L(50%) | G59: L | H59: F | I59: A | J59: g/diff | K59: Deducted | L59: Pts
A60: Cromer Cobras | B60: 8 | C60: 8 | H60: 376 | I60: 151 | J60: =(H60-I60) -> 225 | L60: =((C60*5)+(D60*3)+(E60*2)+(F60*1))-K60 -> 40
A61: Dragons | B61: 8 | C61: 6 | G61: 2 | H61: 232 | I61: 210 | J61: =(H61-I61) -> 22 | L61: =((C61*5)+(D61*3)+(E61*2)+(F61*1))-K61 -> 30
A62: Thetford Spitfires | B62: 8 | C62: 4 | E62: 2 | F62: 2 | H62: 258 | I62: 229 | J62: =(H62-I62) -> 29 | L62: =((C62*5)+(D62*3)+(E62*2)+(F62*1))-K62 -> 26
A63: Wymondham Wildkats | B63: 8 | C63: 4 | F63: 1 | G63: 3 | H63: 194 | I63: 265 | J63: =(H63-I63) -> -71 | K63: 4 | L63: =((C63*5)+(D63*3)+(E63*2)+(F63*1))-K63 -> 17
A64: NU Red | B64: 8 | C64: 2 | F64: 4 | G64: 2 | H64: 182 | I64: 250 | J64: =(H64-I64) -> -68 | K64: 2 | L64: =((C64*5)+(D64*3)+(E64*2)+(F64*1))-K64 -> 12
A65: UEA Pink | B65: 8 | F65: 5 | G65: 3 | H65: 147 | I65: 284 | J65: =(H65-I65) -> -137 | L65: =((C65*5)+(D65*3)+(E65*2)+(F65*1))-K65 -> 5
A67: CANCELLED
A68: All Division 7 | B68: 2025-11-04 | C68: No venue
A69: TB Racers v Thetford A | B69: 2025-12-16 | C69: No Court available
A70: Venus v Premier | B70: 2026-02-10 | C70: No Umpire
A72: CONCEDED
A73: Trailblazers v FHI | B73: 2025-11-25
A74: Stars v NU Royal | B74: 2025-12-16
A75: NU Amber v Watton Wolves | B75: 2026-01-06
A76: Wym Wildkats v Dragons | B76: 2026-01-13
A77: Oracle Pink v TB Shetlands | B77: 2026-01-27
A78: Wym Wildkats v NU Red | B78: 2026-01-27
A79: NU Red v Cromer | B79: 2026-02-10
A81: VOID
A82: NU Ruby v Trailblazers | B82: 2025-12-09

Sheet Thursday CVL
A1: NORWICH NETBALL WINTER LEAGUE 2025-26
D2: THURSDAY OUTDOOR
A3: TEAM | B3: P | C3: W | D3: D | E3: L(-5) | F3: L(50%) | G3: L | H3: F | I3: A | J3: g/diff | K3: Deducted | L3: Pts
A4: Icenians | B4: 16 | C4: 10 | D4: 1 | E4: 1 | F4: 3 | G4: 1 | H4: 486 | I4: 319 | J4: =(H4-I4) -> 167 | L4: =((C4*5)+(D4*3)+(E4*2)+(F4*1))-K4 -> 58
A5: Renegades | B5: 11 | C5: 11 | H5: 388 | I5: 155 | J5: =(H5-I5) -> 233 | L5: =((C5*5)+(D5*3)+(E5*2)+(F5*1))-K5 -> 55
A6: Parklife | B6: 12 | C6: 8 | D6: 1 | E6: 2 | G6: 1 | H6: 390 | I6: 266 | J6: =(H6-I6) -> 124 | L6: =((C6*5)+(D6*3)+(E6*2)+(F6*1))-K6 -> 47
A7: Scorpians | B7: 12 | C7: 8 | E7: 2 | F7: 2 | H7: 369 | I7: 233 | J7: =(H7-I7) -> 136 | L7: =((C7*5)+(D7*3)+(E7*2)+(F7*1))-K7 -> 46
A8: Trailblazers B | B8: 14 | C8: 7 | E8: 2 | F8: 4 | G8: 1 | H8: 316 | I8: 281 | J8: =(H8-I8) -> 35 | L8: =((C8*5)+(D8*3)+(E8*2)+(F8*1))-K8 -> 43
A9: Trowse Jaguars | B9: 11 | C9: 7 | E9: 1 | F9: 2 | G9: 1 | H9: 252 | I9: 211 | J9: =(H9-I9) -> 41 | L9: =((C9*5)+(D9*3)+(E9*2)+(F9*1))-K9 -> 39
A10: Vixens | B10: 13 | C10: 7 | E10: 1 | F10: 3 | G10: 2 | H10: 315 | I10: 301 | J10: =(H10-I10) -> 14 | K10: 2 | L10: =((C10*5)+(D10*3)+(E10*2)+(F10*1))-K10 -> 38
A11: Mighty Peaches | B11: 14 | C11: 6 | E11: 1 | F11: 5 | G11: 2 | H11: 342 | I11: 391 | J11: =(H11-I11) -> -49 | L11: =((C11*5)+(D11*3)+(E11*2)+(F11*1))-K11 -> 37
A12: NMNC 1 | B12: 12 | C12: 7 | F12: 2 | G12: 3 | H12: 278 | I12: 269 | J12: =(H12-I12) -> 9 | K12: 6 | L12: =((C12*5)+(D12*3)+(E12*2)+(F12*1))-K12 -> 31
A13: Thoroughbreds | B13: 12 | C13: 6 | F13: 1 | G13: 5 | H13: 198 | I13: 282 | J13: =(H13-I13) -> -84 | L13: =((C13*5)+(D13*3)+(E13*2)+(F13*1))-K13 -> 31
A14: Cliff Park | B14: 10 | C14: 6 | F14: 2 | G14: 2 | H14: 241 | I14: 216 | J14: =(H14-I14) -> 25 | K14: 2 | L14: =((C14*5)+(D14*3)+(E14*2)+(F14*1))-K14 -> 30
A15: NCF | B15: 12 | C15: 4 | E15: 4 | F15: 1 | G15: 3 | H15: 303 | I15: 311 | J15: =(H15-I15) -> -8 | L15: =((C15*5)+(D15*3)+(E15*2)+(F15*1))-K15 -> 29
A16: Hellesdon Hawks | B16: 11 | C16: 5 | F16: 3 | G16: 3 | H16: 216 | I16: 266 | J16: =(H16-I16) -> -50 | L16: =((C16*5)+(D16*3)+(E16*2)+(F16*1))-K16 -> 28
A17: Firebirds | B17: 12 | C17: 6 | F17: 3 | G17: 3 | H17: 271 | I17: 267 | J17: =(H17-I17) -> 4 | K17: 6 | L17: =((C17*5)+(D17*3)+(E17*2)+(F17*1))-K17 -> 27
A18: Loddon | B18: 13 | C18: 3 | D18: 1 | E18: 1 | F18: 5 | G18: 3 | H18: 333 | I18: 446 | J18: =(H18-I18) -> -113 | L18: =((C18*5)+(D18*3)+(E18*2)+(F18*1))-K18 -> 25
A19: Wymondham Wildkats | B19: 11 | C19: 4 | E19: 1 | F19: 4 | G19: 2 | H19: 262 | I19: 356 | J19: =(H19-I19) -> -94 | K19: 2 | L19: =((C19*5)+(D19*3)+(E19*2)+(F19*1))-K19 -> 24
A20: Magpies | B20: 10 | C20: 2 | F20: 4 | G20: 4 | H20: 175 | I20: 299 | J20: =(H20-I20) -> -124 | L20: =((C20*5)+(D20*3)+(E20*2)+(F20*1))-K20 -> 14
A21: NMNC 2 | B21: 11 | C21: 3 | D21: 1 | F21: 3 | G21: 4 | H21: 163 | I21: 250 | J21: 4 | K21: 8 | L21: 13
A22: UEA Yellow | B22: 12 | C22: 1 | E22: 1 | F22: 4 | G22: 6 | H22: 175 | I22: 369 | J22: =(H22-I22) -> -194 | K22: 4 | L22: 7
A23: Trailblazers A/Youth | B23: 1 | C23: 1 | H23: 39 | I23: 24 | J23: =(H23-I23) -> 15 | L23: 5
A26: Conceded
A27: NMNC1 v Icenians | B27: 2025-09-11
A28: Cliff Park v NMNC2 | B28: 2025-09-11
A29: Firebirds v Vixens | B29: 2025-12-04
A30: Trailblazers v Firebirds | B30: 2025-12-11
A31: Trailblazers v Vixens | B31: 2025-12-18
A32: NMNC1 v Wym Wildkats | B32: 2026-01-29
A36: Void
A37: UEA Yellow v Thoroughbreds | B37: 2025-09-11
A38: Trowse v NMNC2 | B38: 2025-10-16
A39: Icenians v UEA Yellow | B39: 2025-11-27
A41: Cancelled by League
A42: W Wilkats v UEA Yellow | B42: 2025-10-09 | C42: No posts
A43: Parklife v NMNC1 | B43: 2025-10-09 | C43: No posts
A44: Trowse NMNC2 | B44: 2025-10-16 | C44: Played 27/11/25
A45: Trailblazers B v Firebirds | B45: 2025-10-23 | C45: No posts
A46: Renagades v NMNC2 | B46: 2025-10-30 | C46: No posts
A47: All Matches | B47: 2025-11-06 | C47: No courts available at Hellesdon
A48: All Matches | B48: 2026-01-08 | C48: Weather
A49: All Matches | B49: 2026-01-15 | C49: Weather
A53: Team cancellations | B53: 2025-11-20 | C53: All matches except UEA v NCF
A65507: 27 | B65507: 33
